bitfinex-derivatives/quotes_ETHF0:USTF0_20241229
["timestamp","ask_amount","ask_price","bid_price","bid_amount"]
[1735483706629,0.29748,3366.8,3366.3,1.5121]
[1735483706933,0.29747,3366.9,3366.3,1.5121]
[1735483707128,0.29746,3367.0,3366.8,0.29747]
[1735483707326,0.29746,3367.0,3366.6,2.88747334]
[1735483707327,0.29746,3367.0,3366.7,1.58348]
[1735483707522,0.29746,3367.0,3366.9,0.29746]
[1735483707728,0.29746,3367.0,3366.8,0.29747]
[1735483708529,3.95132,3367.6,3366.7,1.286]
[1735483708735,0.29744,3367.2,3367.0,0.29745]
[1735483708924,0.29744,3367.2,3366.8,1.4822]
[1735483709233,3.2078,3367.6,3367.0,6.09527334]
[1735483709435,0.29741,3367.6,3367.0,6.09527334]
[1735483709630,3.1035,3367.8,3367.1,1.4442]
[1735483709826,3.1035,3367.8,3367.4,3.2078]
[1735483710032,3.1035,3367.8,3367.5,0.29741]
[1735483710033,3.40089,3367.8,3367.5,0.29741]
[1735483710337,0.2974,3367.6,3367.4,6.39269334]
[1735483710524,0.29741,3367.6,3367.4,6.39269334]
[1735483710830,6.3113,3367.8,3367.0,6.09527334]
[1735483711029,0.29739,3367.7,3367.1,0.29745]
[1735483711226,0.29742,3367.4,3367.2,0.29743]
[1735483711426,0.29742,3367.5,3367.2,0.29743]
[1735483711635,6.3113,3367.8,3367.1,40.8]
[1735483711831,0.29742,3367.4,3367.1,41.09744]
[1735483712037,0.29743,3367.3,3367.1,41.09744]
[1735483712334,0.29743,3367.3,3367.0,5.44742052]
[1735483712628,0.29742,3367.4,3367.0,5.44742052]
[1735483712830,6.3113,3367.8,3367.4,0.29742]
[1735483712831,0.29741,3367.6,3367.4,0.29742]
[1735483713028,0.2974,3367.7,3367.4,3.50521]
[1735483713635,3.1035,3367.8,3367.4,3.2078]
[1735483713636,0.29741,3367.5,3367.4,3.2078]
[1735483713834,0.29741,3367.6,3367.4,3.50522]
[1735483714036,1.555,3367.8,3367.5,40.8]
[1735483714234,1.555,3367.8,3367.6,0.2974]
[1735483714431,1.85239,3367.8,3367.6,2.53702052]
[1735483714633,0.29739,3367.8,3367.6,2.53702052]
[1735483715236,3.2078,3368.2,3367.6,2.23962052]
[1735483715437,3.2078,3368.2,3368.1,0.29736]
[1735483715641,3.50515,3368.2,3368.0,0.29736]
[1735483715932,6.3167,3368.9,3368.1,3.2078]
[1735483716131,0.29734,3368.3,3368.1,3.50516]
[1735483716337,0.29734,3368.3,3368.2,2.23962052]
[1735483716633,0.29737,3368.0,3367.9,2.23962052]
[1735483716834,0.29737,3368.0,3367.7,1.77589]
[1735483717035,0.29739,3367.8,3367.7,1.4785]
[1735483717231,3.95112,3368.5,3367.7,1.4785]
[1735483717435,0.29738,3367.9,3367.7,1.77589]
[1735483717637,3.2078,3368.5,3367.7,1.4785]
[1735483717835,3.2078,3368.5,3367.9,2.23962052]
[1735483718137,0.29736,3368.1,3367.9,2.53699052]
[1735483718339,0.29736,3368.1,3367.9,0.29737]
[1735483719143,0.29735,3368.2,3368.0,0.29737]
[1735483719839,0.29734,3368.3,3368.1,0.29735]
[1735483720339,3.2078,3368.5,3368.4,0.29733]
[1735483720640,4.7271,3368.9,3368.2,1.5281]
[1735483720843,4.7271,3368.9,3368.4,0.29733]
[1735483720844,0.29732,3368.6,3368.4,0.29733]
[1735483721039,0.29732,3368.6,3368.5,1.286]
[1735483721234,0.29734,3368.3,3368.2,1.5281]
[1735483721445,0.29738,3367.9,3367.8,1.5281]
[1735483721635,0.29739,3367.8,3367.7,3.2078]
[1735483724140,0.29744,3367.2,3367.1,3.2078]
[1735483724535,0.29744,3367.2,3366.9,2.88212085]
[1735483724536,0.29747,3366.8,3366.7,3.2078]
[1735483727739,0.29753,3366.2,3366.1,3.2078]
[1735483728045,0.29754,3366.0,3365.9,40.8]
[1735483728447,1.5449,3366.3,3365.9,40.8]
[1735483728635,3.2078,3366.5,3365.9,40.8]
[1735483728939,0.29753,3366.2,3366.0,3.50534]
[1735483729140,0.29749,3366.6,3366.1,0.29753]
[1735483729345,0.29753,3366.3,3366.0,4.79134]
[1735483729544,1.481,3366.7,3366.0,4.4938]
[1735483729733,1.481,3366.7,3366.0,1.286]
[1735483729734,0.29754,3366.1,3366.0,1.286]
[1735483732243,0.29754,3366.1,3365.9,40.8]
[1735483732244,0.29754,3366.0,3365.9,40.8]
[1735483732541,0.29757,3365.7,3365.6,3.2078]
[1735483732941,0.29761,3365.3,3365.2,3.2078]
[1735483733145,3.2078,3365.8,3365.2,3.2078]
[1735483733540,1.4414,3366.0,3365.3,40.8]
[1735483733747,0.2976,3365.4,3365.3,40.8]
[1735483734147,1.4414,3366.0,3365.3,40.8]
[1735483734348,1.4414,3366.0,3365.3,43.68212085]
[1735483734544,0.29757,3365.8,3365.4,0.2976]
[1735483734948,1.4414,3366.0,3365.4,1.286]
[1735483735152,0.29759,3365.5,3365.4,1.286]
[1735483735946,0.2976,3365.4,3365.3,40.8]
[1735483737053,3.2078,3365.8,3365.2,3.2078]
[1735483737054,0.29761,3365.3,3365.2,3.2078]
[1735483739045,3.2078,3365.8,3364.6,44.0078]
[1735483739244,0.29763,3365.0,3364.6,45.2938]
[1735483739645,0.29763,3365.0,3364.8,0.29764]
[1735483740651,0.74396,3365.6,3364.6,45.2938]
[1735483740847,3.2078,3365.8,3365.1,3.2078]
[1735483741047,0.29762,3365.2,3365.0,0.29763]
[1735483741448,0.29761,3365.3,3365.1,3.50542]
[1735483741953,0.29761,3365.3,3365.2,1.5745]
[1735483744854,0.29761,3365.2,3365.1,3.2078]
[1735483745347,0.29768,3364.5,3364.4,3.2078]
[1735483745555,0.29766,3364.7,3364.5,0.29767]
[1735483745744,3.0322,3365.1,3364.4,3.50548]
[1735483746146,0.29767,3364.6,3364.4,3.50548]
[1735483746449,0.29767,3364.6,3364.5,40.8]
[1735483749248,0.29768,3364.5,3364.4,3.2078]
[1735483751446,5.28788,3365.1,3364.4,3.2078]
[1735483751651,0.29767,3364.6,3364.5,0.29768]
[1735483751852,0.29763,3365.1,3364.5,2.24233285]
[1735483752058,0.29763,3365.1,3365.0,0.29763]
[1735483752059,0.29762,3365.1,3365.0,0.29763]
[1735483752249,0.29762,3365.1,3364.9,3.2078]
[1735483752551,0.29763,3365.0,3364.9,3.2078]
[1735483752756,0.74396,3365.6,3364.9,44.0078]
[1735483752955,0.29762,3365.2,3365.0,0.29763]
[1735483753154,0.29762,3365.1,3365.0,0.29763]
[1735483754358,0.29762,3365.1,3364.9,45.5281]
[1735483754655,0.29762,3365.1,3364.9,45.82574]
[1735483755359,0.29763,3365.0,3364.9,45.82574]
[1735483755560,0.29759,3365.5,3364.9,45.82574]
[1735483755753,0.29763,3365.1,3364.9,45.82574]
[1735483756154,0.74396,3365.6,3364.9,45.82574]
[1735483756355,0.29763,3365.1,3364.9,45.82574]
[1735483756858,0.29762,3365.2,3365.1,0.29762]
[1735483757259,3.2078,3365.7,3364.9,45.5281]
[1735483757449,0.29763,3365.0,3364.9,45.5281]
[1735483757654,0.29763,3365.0,3364.9,3.2078]
[1735483759054,0.29763,3365.0,3363.3,0.23941995]
[1735483759055,1.4533,3365.1,3363.8,6.09501018]
[1735483759357,0.2977,3364.2,3363.8,6.09501018]
[1735483759551,3.2078,3364.8,3364.0,40.8]
[1735483759552,0.29771,3364.1,3364.0,40.8]
[1735483763058,3.2078,3364.8,3364.0,40.8]
[1735483763360,0.29771,3364.1,3364.0,41.09771]
[1735483763762,0.2977,3364.3,3364.1,0.29771]
[1735483763957,0.2977,3364.3,3364.2,0.2977]
[1735483764163,0.2977,3364.3,3364.2,3.5055]
[1735483764768,3.2078,3364.8,3364.0,40.8]
[1735483764963,0.29771,3364.1,3364.0,40.8]
[1735483770566,3.2078,3364.6,3364.0,40.8]
[1735483770767,0.29769,3364.4,3364.3,0.29769]
[1735483771270,3.2078,3364.6,3364.1,1.4509]
[1735483771468,3.2078,3364.6,3364.0,40.8]
[1735483771659,0.29771,3364.1,3364.0,40.8]
[1735483772166,0.74422,3364.4,3363.8,3.2078]
[1735483772368,0.29774,3363.8,3363.7,1.5307]
[1735483772762,0.29774,3363.8,3363.7,42.3307]
[1735483774263,0.29774,3363.8,3363.7,1.5307]
[1735483774465,0.29777,3363.5,3363.4,5.45202071]
[1735483774770,0.29777,3363.5,3363.4,46.25202071]
[1735483775772,0.29777,3363.5,3363.4,46.54979071]
[1735483776374,0.29777,3363.5,3363.4,44.0078]
[1735483776571,0.29777,3363.5,3363.4,3.2078]
[1735483776774,0.29777,3363.5,3363.4,5.45202071]
[1735483777072,0.29777,3363.5,3363.4,46.25202071]
[1735483777672,0.29777,3363.5,3363.4,44.0078]
[1735483777867,0.2978,3363.1,3363.0,3.0219]
[1735483778068,3.2078,3363.7,3363.0,3.0219]
[1735483778379,0.29778,3363.3,3363.2,0.29779]
[1735483779274,0.29774,3363.9,3363.7,0.29774]
[1735483779469,1.4757,3364.0,3363.7,2.24422071]
[1735483779780,0.29774,3363.8,3363.6,0.29775]
[1735483779973,0.29776,3363.6,3363.5,0.29776]
[1735483780171,0.29777,3363.5,3363.4,6.73802071]
[1735483780573,0.29777,3363.5,3363.4,7.03579071]
[1735483781080,0.29777,3363.5,3363.4,6.73802071]
[1735483782075,0.29775,3363.7,3363.6,0.29776]
[1735483782275,1.4757,3364.0,3363.6,0.29776]
[1735483782576,0.29774,3363.8,3363.7,1.5103]
[1735483782775,0.29774,3363.8,3363.7,2.9903]
[1735483784684,0.29773,3363.9,3363.8,0.29773]
[1735483784981,0.29773,3363.9,3363.7,2.9903]
[1735483785186,0.29774,3363.8,3363.7,2.9903]
[1735483785381,0.29774,3363.8,3363.7,3.28805]
[1735483785788,3.2078,3364.3,3363.7,2.9903]
[1735483785998,0.29774,3363.9,3363.7,3.28804]
[1735483786876,0.29774,3363.8,3363.7,2.9903]
[1735483787288,0.29774,3363.8,3363.7,3.28805]
[1735483787487,0.29773,3363.9,3363.7,3.28805]
[1735483787798,0.29774,3363.8,3363.7,3.28805]
[1735483789599,0.74423,3364.4,3363.7,3.28805]
[1735483789802,0.29773,3363.9,3363.7,3.28805]
[1735483789997,0.74423,3364.4,3363.7,3.28805]
[1735483789998,0.29774,3363.8,3363.7,3.28805]
[1735483790192,0.29774,3363.9,3363.7,3.28805]
[1735483790397,2.24949,3364.6,3363.7,2.9903]
[1735483790597,0.29773,3364.0,3363.8,0.29773]
[1735483791201,0.29773,3364.0,3363.9,0.29773]
[1735483792094,3.69433285,3364.7,3364.6,0.29767]
[1735483792396,3.39667285,3364.7,3364.6,3.50547]
[1735483792603,3.39667285,3364.7,3364.6,44.30547]
[1735483792896,3.39667285,3364.8,3364.7,0.29766]
[1735483794701,4.52889714,3365.0,3364.6,44.0078]
[1735483794702,0.29766,3364.7,3364.6,3.2078]
[1735483794902,0.29767,3364.6,3364.5,1.73998]
[1735483795096,3.0595,3364.9,3364.5,1.4423]
[1735483795297,3.35715,3364.9,3364.7,0.29765]
[1735483795799,0.29765,3364.8,3364.7,0.29765]
[1735483796503,0.29765,3364.8,3364.6,1.74306]
[1735483796799,7.01141,3364.9,3364.0,7.85371929]
[1735483797001,7.01141,3364.9,3364.2,1.4489]
[1735483797202,0.29769,3364.4,3364.3,0.29769]
[1735483797399,0.29769,3364.3,3364.2,1.4489]
[1735483798299,0.29771,3364.1,3364.0,3.2078]
[1735483799807,0.29771,3364.1,3364.0,3.50552]
[1735483800000,0.29771,3364.1,3364.0,3.2078]
[1735483800195,0.29771,3364.2,3364.0,3.2078]
[1735483800400,0.29771,3364.1,3364.0,3.50552]
[1735483800905,0.29771,3364.2,3364.0,3.2078]
[1735483801106,0.29771,3364.2,3364.0,3.50551]
[1735483801508,0.2977,3364.3,3364.2,0.2977]
[1735483802204,1.5097,3364.7,3364.0,3.2078]
[1735483802396,3.69431285,3365.0,3364.8,0.29765]
[1735483802697,3.39667285,3365.0,3364.9,3.50544]
[1735483802896,3.39667285,3365.0,3364.9,47.29674]
[1735483803298,3.39667285,3365.2,3364.9,46.9991]
[1735483803505,3.39667285,3365.2,3365.1,2.54184071]
[1735483804105,3.39667285,3365.2,3365.1,43.34184071]
[1735483804901,3.39667285,3365.2,3365.1,41.09762]
[1735483805203,3.39667285,3365.2,3365.1,45.44591929]
[1735483805204,0.29761,3365.2,3365.1,45.44591929]
[1735483806504,1.7298,3365.4,3365.1,41.09762]
[1735483806905,0.29763,3365.0,3364.9,3.2078]
[1735483807312,0.29768,3364.5,3364.4,7.85371929]
[1735483807505,0.29769,3364.4,3364.3,4.64591929]
[1735483807809,0.29768,3364.6,3364.4,0.29768]
[1735483808009,0.29769,3364.4,3364.3,7.85371929]
[1735483808205,0.29769,3364.4,3364.3,4.64591929]
[1735483809006,0.2977,3364.3,3364.0,1.74702]
[1735483809211,0.29771,3364.2,3364.0,1.4493]
[1735483809706,3.2078,3364.6,3364.0,1.4493]
[1735483809916,2.27428717,3364.9,3364.5,2.24422071]
[1735483810103,0.29766,3364.7,3364.5,2.24422071]
[1735483810300,0.29766,3364.8,3364.5,2.54189071]
[1735483810712,0.29765,3364.8,3364.6,0.29766]
[1735483812014,2.27428717,3365.3,3364.7,3.2078]
[1735483812311,4.91377285,3365.4,3364.7,3.2078]
[1735483812312,4.08898717,3365.4,3365.0,2.24422071]
[1735483812516,0.29762,3365.2,3365.0,2.54185071]
[1735483812813,0.29762,3365.2,3365.1,40.8]
[1735483813413,5.0,3365.2,3364.1,6.96887894]
[1735483813714,3.95191,3364.9,3364.1,6.96887894]
[1735483814016,0.29769,3364.4,3364.2,48.95141929]
[1735483814318,3.95191,3364.9,3364.2,7.85371929]
[1735483814319,0.29769,3364.3,3364.2,7.85371929]
[1735483814711,1.4295,3364.6,3364.2,7.85371929]
[1735483815014,0.29769,3364.4,3364.2,3.2078]
[1735483815209,0.29769,3364.3,3364.2,3.2078]
[1735483816615,0.29769,3364.4,3364.2,3.2078]
[1735483816815,0.29766,3364.7,3364.5,0.29768]
[1735483817121,0.29768,3364.5,3364.3,0.29769]
[1735483817310,1.4615,3364.8,3364.3,0.29769]
[1735483817512,0.29769,3364.4,3364.2,1.7941]
[1735483817915,0.29768,3364.5,3364.3,0.29769]
[1735483818218,1.4615,3364.8,3364.7,0.29766]
[1735483819114,1.4615,3364.8,3364.4,1.4666]
[1735483819115,3.2078,3364.9,3364.8,0.29765]
[1735483819614,1.5021,3365.4,3365.3,0.29761]
[1735483820116,2.27428717,3365.5,3365.4,0.2976]
[1735483820915,3.2078,3366.0,3365.6,0.29758]
[1735483821215,0.29756,3365.9,3365.6,0.29758]
[1735483821911,3.50535,3366.0,3365.7,0.29757]
[1735483822319,3.50535,3366.0,3365.8,0.29756]
[1735483822718,3.2078,3366.0,3365.9,0.29755]
[1735483823219,3.2078,3366.0,3365.3,4.31379974]
[1735483823422,3.50535,3366.0,3365.8,0.29756]
[1735483823618,3.2078,3366.0,3365.3,4.31379974]
[1735483823923,0.29757,3365.8,3365.6,0.29757]
[1735483825112,3.2078,3366.0,3365.3,4.31379974]
[1735483825318,0.29758,3365.6,3365.3,0.29761]
[1735483825531,1.4331,3365.7,3365.2,3.2078]
[1735483825716,0.29761,3365.3,3365.2,3.2078]
[1735483825921,0.29764,3365.0,3364.8,0.29764]
[1735483826414,3.2078,3364.9,3364.6,4.64591929]
[1735483826725,3.2078,3364.9,3364.7,0.29765]
[1735483826726,4.93854,3364.9,3364.7,0.29765]
[1735483826923,0.29765,3364.8,3364.6,40.8]
[1735483827316,0.29766,3364.7,3364.6,40.8]
[1735483829324,3.2078,3364.9,3364.8,0.29765]
[1735483829623,0.29763,3365.0,3364.8,0.29765]
[1735483829823,0.29763,3365.0,3364.6,40.8]
[1735483829824,1.5375,3365.2,3364.6,41.09766]
[1735483830128,0.29766,3364.7,3364.6,40.8]
[1735483830526,0.29769,3364.4,3364.2,0.2977]
[1735483830828,0.29769,3364.4,3364.3,0.29769]
[1735483831028,0.29768,3364.5,3364.3,41.09769]
[1735483831426,0.29769,3364.4,3364.3,41.09769]
[1735483831627,0.29768,3364.5,3364.3,41.09769]
[1735483832427,0.29769,3364.4,3364.3,40.8]
[1735483832922,0.29769,3364.4,3364.3,41.09769]
[1735483833631,0.29769,3364.4,3364.3,40.8]
[1735483834231,3.2078,3364.5,3364.3,40.8]
[1735483834426,3.2078,3364.5,3364.4,0.29769]
[1735483836724,3.2078,3364.9,3364.8,0.29765]
[1735483837124,2.27428717,3365.1,3365.0,0.29763]
[1735483837927,2.27428717,3365.1,3364.8,1.536]
[1735483838127,0.29764,3364.9,3364.8,1.536]
[1735483838335,0.29764,3364.9,3364.8,1.83365]
[1735483838836,0.29764,3364.9,3364.8,1.536]
[1735483839027,1.5205,3365.0,3364.4,5.45092048]
[1735483839223,1.5205,3365.0,3364.4,6.98692048]
[1735483839428,0.29766,3364.7,3364.6,0.29766]
[1735483840134,0.29765,3364.8,3364.7,0.29765]
[1735483840335,3.2078,3365.1,3364.4,6.98692048]
[1735483840537,0.29766,3364.7,3364.6,0.29766]
[1735483841040,3.2078,3365.1,3364.5,0.29768]
[1735483841041,0.29767,3364.6,3364.5,0.29768]
[1735483841333,3.2078,3365.1,3364.7,0.29765]
[1735483841334,0.29765,3364.9,3364.7,0.29765]
[1735483841532,0.29765,3364.9,3364.7,41.09765]
[1735483842039,0.29765,3364.8,3364.7,41.09765]
[1735483842731,0.29765,3364.9,3364.8,0.29765]
[1735483843132,0.29765,3364.8,3364.5,0.29768]
[1735483843327,0.29766,3364.7,3364.6,40.8]
[1735483843545,0.29767,3364.6,3364.5,0.29767]
[1735483843844,0.29768,3364.5,3364.4,4.7438]
[1735483844142,0.2977,3364.2,3364.1,4.94362929]
[1735483844528,0.2977,3364.3,3364.2,0.2977]
[1735483844733,1.4929,3364.7,3364.2,0.2977]
[1735483844933,0.29769,3364.4,3364.3,0.29769]
[1735483845737,0.29766,3364.7,3364.6,0.29767]
[1735483846131,1.4593,3364.9,3364.4,5.45092048]
[1735483846644,1.4593,3364.9,3364.7,0.29765]
[1735483846839,0.29765,3364.8,3364.7,0.29765]
[1735483847746,1.4593,3364.9,3364.5,2.9363]
[1735483848038,1.4593,3364.9,3364.8,0.29765]
[1735483848039,1.75695,3364.9,3364.8,0.29765]
[1735483848955,0.29765,3364.8,3364.7,0.29765]
[1735483849341,3.2078,3365.1,3365.0,0.29763]
[1735483849540,2.27428717,3365.3,3365.2,0.29761]
[1735483849843,2.27428717,3365.3,3365.2,3.50541]
[1735483850047,2.27428717,3365.3,3365.2,44.30541]
[1735483850741,2.27428717,3365.6,3365.5,0.29759]
[1735483850933,2.27428717,3365.6,3365.5,2.54071048]
[1735483851337,2.27428717,3365.6,3365.5,3.82571048]
[1735483851550,2.27428717,3365.6,3365.5,44.62571048]
[1735483852844,1.75642,3366.3,3366.1,0.29753]
[1735483853038,1.4589,3366.3,3365.9,2.24312048]
[1735483853243,0.29753,3366.2,3366.0,0.29754]
[1735483853439,2.57178717,3366.5,3366.3,0.29751]
[1735483854247,0.2975,3366.5,3366.3,0.29751]
[1735483854647,0.29751,3366.4,3366.2,0.29752]
[1735483854846,0.2975,3366.5,3366.3,0.29752]
[1735483855741,4.9209,3366.6,3365.9,2.24312048]
[1735483855938,4.6234,3366.6,3365.9,2.24312048]
[1735483856141,0.29751,3366.5,3366.2,0.29752]
[1735483856344,0.29751,3366.5,3366.3,0.29752]
[1735483856642,0.29751,3366.5,3365.9,2.24312048]
[1735483856643,4.92089,3366.6,3366.4,0.2975]
[1735483856845,4.6234,3366.6,3366.5,0.2975]
[1735483857650,3.2078,3366.6,3366.5,0.2975]
[1735483860943,3.2078,3366.6,3366.3,2.885]
[1735483861152,3.2078,3366.6,3366.3,1.4639]
[1735483861356,0.2975,3366.5,3366.3,1.76141]
[1735483861751,3.2078,3366.6,3366.3,1.4639]
[1735483861954,0.29746,3367.0,3366.8,0.29747]
[1735483862156,2.888,3367.2,3366.8,2.24312048]
[1735483862352,2.888,3367.2,3367.1,0.29745]
[1735483863258,2.888,3367.2,3366.9,1.70756]
[1735483863755,3.18544,3367.2,3366.9,1.70756]
[1735483863953,3.18544,3367.2,3367.0,0.29746]
[1735483864154,2.888,3367.2,3366.9,1.4101]
[1735483864356,0.29745,3367.1,3366.9,1.70756]
[1735483864859,3.18544,3367.2,3367.0,0.29745]
[1735483865458,3.18544,3367.2,3366.9,1.4101]
[1735483865459,2.888,3367.2,3366.9,1.4101]
[1735483865660,3.18544,3367.2,3367.1,0.29745]
[1735483866467,0.29744,3367.2,3367.1,0.29745]
[1735483867366,3.2078,3367.4,3367.3,0.29743]
[1735483867562,2.9723,3367.7,3367.3,3.2078]
[1735483867762,3.2078,3368.0,3367.4,2.24312048]
[1735483867963,2.9312,3367.9,3367.3,3.2078]
[1735483868163,0.29742,3367.5,3367.3,3.50522]
[1735483868563,0.29742,3367.5,3367.4,0.29742]
[1735483868764,2.865,3367.9,3367.8,0.29739]
[1735483868976,2.865,3367.9,3367.4,3.66032048]
[1735483869175,1.4578,3368.4,3367.7,5.45092048]
[1735483869176,0.29736,3368.2,3367.7,5.45092048]
[1735483869464,2.865,3368.4,3368.0,2.24312048]
[1735483869671,2.26440683,3368.6,3368.3,2.24312048]
[1735483869967,2.26440683,3368.6,3368.1,4.6773]
[1735483870166,0.29733,3368.5,3368.2,0.29735]
[1735483870364,0.29733,3368.5,3368.3,0.29734]
[1735483870960,7.5807,3368.9,3368.1,4.6773]
[1735483871162,6.1229,3368.9,3368.2,1.3877]
[1735483871362,0.2973,3368.8,3368.5,0.29732]
[1735483872166,6.1229,3368.9,3368.2,1.3877]
[1735483872363,0.74325,3368.8,3367.9,0.29737]
[1735483872672,0.29739,3367.8,3367.5,0.29741]
[1735483872865,0.2974,3367.7,3367.5,0.29741]
[1735483873072,3.2078,3368.0,3367.5,0.29741]
[1735483873272,2.8698,3367.9,3367.5,0.29741]
[1735483873461,0.29739,3367.8,3367.5,0.29741]
[1735483873661,2.8698,3367.9,3367.4,6.38332048]
[1735483874061,0.29739,3367.8,3367.6,0.2974]
[1735483874265,3.16718,3367.9,3367.6,0.2974]
[1735483874470,2.8698,3367.9,3367.7,0.29739]
[1735483874783,0.29734,3368.3,3367.9,0.29738]
[1735483875073,3.16714,3368.3,3368.1,0.29736]
[1735483875278,2.8698,3368.3,3368.0,0.29736]
[1735483875569,3.16714,3368.3,3368.0,0.29736]
[1735483875963,2.8698,3368.3,3367.7,2.24312048]
[1735483876275,4.6493,3368.9,3368.5,0.29732]
[1735483876471,0.29731,3368.7,3368.5,0.29732]
[1735483876680,0.29731,3368.7,3368.4,0.29733]
[1735483877171,2.8521,3368.8,3368.5,0.29732]
[1735483877877,2.8521,3368.8,3368.3,2.24312048]
[1735483878169,3.1494,3368.8,3368.3,2.24312048]
[1735483878374,3.1494,3368.8,3368.6,0.29731]
[1735483878571,2.8521,3368.8,3368.4,40.8]
[1735483878875,3.2078,3368.9,3368.8,0.2973]
[1735483879277,3.2078,3368.9,3368.8,41.0973]
[1735483879674,2.9204,3369.5,3368.8,44.0078]
[1735483879877,0.29725,3369.4,3369.1,0.29726]
[1735483880076,2.9204,3369.5,3368.9,3.68492048]
[1735483880382,0.29726,3369.3,3369.0,0.29728]
[1735483880574,0.29725,3369.4,3369.1,0.29726]
[1735483881074,2.9204,3369.5,3369.0,0.29727]
[1735483881279,0.29726,3369.3,3369.0,0.29727]
[1735483881672,0.29725,3369.4,3369.2,0.29726]
[1735483882802,2.9204,3369.5,3368.9,1.4418]
[1735483883008,2.24312048,3369.4,3368.4,1.3748]
[1735483883197,3.2078,3369.1,3368.4,1.3748]
[1735483883403,0.29729,3369.0,3368.7,3.2078]
[1735483883604,0.29729,3369.0,3368.4,1.3748]
[1735483883605,6.1282,3369.5,3368.6,2.24312048]
[1735483883809,6.1282,3369.5,3369.0,0.29727]
[1735483883810,0.29726,3369.3,3369.0,0.29727]
[1735483884003,6.1282,3369.5,3368.7,1.4742]
[1735483884806,0.29727,3369.1,3368.9,0.29728]
[1735483885005,0.29726,3369.3,3369.0,0.29727]
[1735483885201,0.29726,3369.3,3369.1,0.29727]
[1735483885708,6.42544,3369.5,3369.4,0.29724]
[1735483886605,6.42544,3369.5,3369.2,0.29726]
[1735483886606,0.29725,3369.3,3369.2,0.29726]
[1735483887496,6.42544,3369.5,3369.4,0.29724]
[1735483887700,6.1282,3369.5,3369.4,0.29724]
[1735483887904,6.42544,3369.5,3369.2,2.24312048]
[1735483888192,3.21764,3369.5,3369.4,0.29724]
[1735483888696,0.29723,3369.6,3369.5,0.29723]
[1735483888980,0.29723,3369.6,3369.5,0.29724]
[1735483889186,0.29723,3369.6,3369.4,0.29724]
[1735483889382,0.29724,3369.5,3369.4,0.29724]
[1735483890184,0.29726,3369.2,3369.1,3.50507]
[1735483890785,4.2651,3370.0,3369.1,3.2078]
[1735483891083,4.2651,3370.0,3369.4,2.24312048]
[1735483891278,6.50822048,3370.0,3369.2,1.5154]
[1735483891476,0.29725,3369.3,3369.2,1.5154]
[1735483891672,5.0081,3370.0,3369.2,1.81266]
[1735483891879,0.29725,3369.4,3369.2,1.81266]
[1735483892075,0.29725,3369.3,3369.2,1.5154]
[1735483892583,0.74304,3369.8,3369.1,5.45092048]
[1735483892787,0.29726,3369.2,3369.1,5.45092048]
[1735483893288,4.2651,3370.0,3369.1,5.45092048]
[1735483893486,0.74301,3369.9,3369.2,0.29726]
[1735483893686,0.74301,3369.9,3369.1,5.74819048]
[1735483893687,0.74303,3369.8,3369.1,5.74819048]
[1735483893876,0.29723,3369.6,3369.4,0.29724]
[1735483894076,4.2651,3370.0,3369.1,5.45092048]
[1735483894275,0.74301,3369.9,3369.2,0.29726]
[1735483894477,0.29726,3369.2,3369.1,3.2078]
[1735483897388,0.29726,3369.2,3369.1,3.20449077]
[1735483898189,0.29731,3368.7,3368.6,3.2078]
[1735483898390,0.2973,3368.8,3368.7,0.2973]
[1735483898692,3.2078,3369.2,3368.7,0.2973]
[1735483898693,1.4861,3369.6,3368.7,1.4397]
[1735483898890,3.2078,3369.8,3369.3,2.24312048]
[1735483899087,0.29723,3369.6,3369.4,1.73694]
[1735483899289,3.2078,3369.8,3369.4,1.4397]
[1735483899491,3.2078,3369.8,3369.5,40.8]
[1735483899692,0.29722,3369.7,3369.5,42.45733]
[1735483900095,0.29722,3369.7,3369.6,0.29722]
[1735483900290,3.2078,3369.8,3369.5,1.3601]
[1735483900495,3.2078,3369.8,3369.7,0.29722]
[1735483900695,3.2078,3369.8,3369.7,41.09722]
[1735483900900,3.2078,3370.2,3370.0,0.29719]
[1735483901198,3.2078,3370.2,3370.1,0.29718]
[1735483901588,0.29714,3370.6,3370.4,0.29715]
[1735483901789,0.29713,3370.7,3370.4,0.29715]
[1735483901990,0.29713,3370.7,3370.2,5.12762048]
[1735483901991,1.75603,3370.8,3370.5,0.29714]
[1735483902195,0.29713,3370.7,3370.5,0.29714]
[1735483902595,0.29715,3370.5,3370.3,0.29716]
[1735483902900,1.4589,3370.8,3370.0,0.29718]
[1735483903101,0.29718,3370.2,3370.0,0.29718]
[1735483903698,0.29718,3370.2,3369.9,2.24312048]
[1735483903898,0.29718,3370.2,3369.9,2.54031048]
[1735483904100,2.20172,3370.8,3369.9,2.24312048]
[1735483904101,0.29719,3370.0,3369.9,2.24312048]
[1735483904400,1.4589,3370.8,3370.0,0.29719]
[1735483904401,0.29718,3370.2,3370.0,0.29719]
[1735483904793,0.29717,3370.3,3370.1,40.8]
[1735483904997,0.29713,3370.7,3370.2,5.45092048]
[1735483905194,0.29711,3371.0,3370.8,0.29712]
[1735483905599,0.29711,3370.9,3370.7,3.05052]
[1735483905803,0.29711,3371.0,3370.8,0.29712]
[1735483906201,3.50488,3371.3,3371.0,0.2971]
[1735483906397,5.02380683,3371.4,3370.9,2.24312048]
[1735483906599,5.02380683,3371.4,3371.2,3.2078]
[1735483906806,0.29708,3371.3,3371.0,0.2971]
[1735483907000,0.29708,3371.3,3371.1,0.29709]